Cogmind - Beta 16 @@@ ROGUE MODE // 2025.10.24 @ 19:25:36 Player: CowMind Result: Destroyed by X8-GDM(R) with Subdweller Beam Cannon Performance ------------- Evolutions (0) 0 Regions Visited (3) 600 Robots Destroyed (7) 35 Value Destroyed (94) 94 Prototype IDs (0) 0 Alien Tech Used (0) 0 Bonus (0) 0 TOTAL SCORE: 729 Bonus ------- None Cogmind --------- Core Integrity 0/250 Matter 300/300 Energy 100/100 System Corruption 0% Temperature Cool (9) Movement Core (100) Ox1 Location -10/Subcaves Parts ------- > --- POWER (1) -------- (None) > --- PROPULSION (2) --- (None) > --- UTILITY (2) ------ Small Storage Unit > --- WEAPON (2) ------- (None) > --- INVENTORY (8) ---- Large Matter Pod (150) Targeting Computer Peak State ------------ > --- POWER ------------ Ion Engine > --- PROPULSION ------- Aluminum Leg Aluminum Leg > --- UTILITY ---------- Small Storage Unit Sensor Array > --- WEAPON ----------- Light Assault Rifle Light Assault Rifle > --- INVENTORY -------- Large Matter Pod Targeting Computer [Rating: 7] Favorites ----------- Power Ion Engine Engine Ion Engine Propulsion Aluminum Leg Leg Aluminum Leg Utility Small Storage Unit Device Sensor Array Storage Small Storage Unit Weapon Light Assault Rifle Energy Gun Beamcaster Ballistic Gun Light Assault Rifle Build | -11 -10 -10 -10 ------- Run | Yrd Mat Min Sub Slots Evolved . | . . . . Power . | . . . . Propulsion . | . . . . Utility . | . . . . Weapon . | . . . . Parts Attached 8 | 6 . 1 1 Power 1 | 1 . . . Engine 1 | 1 . . . Core . | . . . . Reactor . | . . . . Propulsion 2 | 2 . . . Treads . | . . . . Leg 2 | 2 . . . Wheel . | . . . . Hover . | . . . . Flight . | . . . . Utility 2 | 1 . 1 . Device 1 | . . 1 . Storage 1 | 1 . . . Processor . | . . . . Hackware . | . . . . Protection . | . . . . Artifact . | . . . . Weapon 3 | 2 . . 1 Energy Gun 1 | . . . 1 Energy Cannon . | . . . . Ballistic Gun 2 | 2 . . . Ballistic Cannon . | . . . . Launcher . | . . . . Special Weapon . | . . . . Impact Weapon . | . . . . Slashing Weapon . | . . . . Piercing Weapon . | . . . . Special Melee Weapon . | . . . . Unidentified Prototypes . | . . . . Parts Lost 6 | . . . 6 Power 1 | . . . 1 Propulsion 2 | . . . 2 Utility 1 | . . . 1 Weapon 2 | . . . 2 Highest Loss Streak 4 | . . . 4 To Critical Strikes . | . . . . Average Backups 1 | . . 1 2 Power . | . . . . Propulsion . | . . . . Utility 1 | . . 1 2 Weapon . | . . . . Tool/Special . | . . . . Unused Backups 2 | . . . 2 Power . | . . . . Propulsion . | . . . . Utility 2 | . . . 2 Weapon . | . . . . Tool/Special . | . . . . Average Slot Usage (%) 83 | . 85 91 78 Engine 13 | . 14 14 13 Leg 23 | . 28 28 18 Device 7 | . . 5 11 Storage 14 | . 14 14 14 Ballistic Gun 23 | . 28 28 18 Peak Build Rating 7 | 6 6 7 7 Average Rating 5 | 4 6 6 5 On Entrance 4 | . 6 6 7 Avg Prop Armor Cover (%) . | . . . . Naked Turns . | . . . . Heaviest Build 15 | 12 12 13 15 Greatest Support 20 | 20 20 20 20 Greatest Overweight (x) 4 | . . . 4 Average Overweight (x) . | . . . . Largest Inventory Capacity 8 | 8 8 8 8 Average Capacity 7 | 6 8 8 8 Most Carried 5 | 5 . 3 3 Average Carried 1 | . . 1 2 Final Capacity 8 | 8 8 8 8 Final Carried 2 | . . 2 2 Class Distribution -------------------- 100% | Mutant Dominant Class ---------------- Mutant | -10/Materials Mutant | -10/Mines Mutant | -10/Subcaves Resources | -11 -10 -10 -10 ----------- Run | Yrd Mat Min Sub Matter Collected 434 | 185 28 95 126 Remotely . | . . . . Salvage Created 121 | . 86 . 35 Parts 13 | . 11 . 2 Haulers Intercepted . | . . . . Recyclers Shooed . | . . . . Parts Field Recycled . | . . . . Retrieved Matter . | . . . . Parts Self-Destructed 5 | . . . 5 Prevented . | . . . . Parts Restored . | . . . . Kills | -11 -10 -10 -10 ------- Run | Yrd Mat Min Sub Combat Hostiles Destroyed 7 | . 6 . 1 Guns 7 | . 6 . 1 Classes Destroyed 2 | . 1 . 1 Swarmer 6 | . 6 . . Grunt 1 | . . . 1 Best Kill Streak 6 | . 6 . 1 Combat Bots Only 6 | . 6 . 1 Max Kills in Single Turn 1 | . 1 . 1 Gunslinging . | . . . . Exploded . | . . . . Melee . | . . . . Uniques/NPCs Destroyed . | . . . . Combat | -11 -10 -10 -10 -------- Run | Yrd Mat Min Sub Hostile Shots Fired 66 | . 37 . 29 Missed 21 | . 11 . 10 Hits 45 | . 26 . 19 Projectile 45 | . 26 . 19 Critical Strikes 1 | . 1 . . Damage Taken 767 | . 261 . 506 Core 261 | . 61 . 200 Absorbed by Shields . | . . . . Core Remaining (%) 100 | 100 . . . Volleys Fired 16 | . 12 . 4 Largest 2 | . 2 . 2 Hottest 40 | . 40 . 40 Shots Fired 32 | . 24 . 8 Gun 32 | . 24 . 8 Cannon . | . . . . Launcher . | . . . . Special . | . . . . Kinetic 32 | . 24 . 8 Thermal . | . . . . Explosive . | . . . . Electromagnetic . | . . . . Robot Hit Streak 5 | . 5 . 1 Robot Miss Streak 3 | . 3 . 1 Penetration Max . | . . . . Secondary Targets 1 | . 1 . . Max Gunslinging Chain 1 | . 1 . . Shots Hit Robots 16 | . 12 . 4 Core Hits 10 | . 8 . 2 Critical Kills . | . . . . Critical Parts Destroyed . | . . . . Critical Strikes . | . . . . Melee Attacks . | . . . . Impact . | . . . . Slashing . | . . . . Piercing . | . . . . Sneak Attacks . | . . . . Combat Hostiles . | . . . . Follow-up Attacks . | . . . . Damage Inflicted 140 | . 107 . 33 Guns 140 | . 107 . 33 Cannons . | . . . . Explosions . | . . . . Melee . | . . . . Ramming . | . . . . Kinetic 140 | . 107 . 33 Thermal . | . . . . Explosive . | . . . . Electromagnetic . | . . . . Impact . | . . . . Slashing . | . . . . Piercing . | . . . . Highest Corruption . | . . . . Average Corruption . | . . . . Corruption Purged . | . . . . Corruption Blocked . | . . . . Overload Shots . | . . . . Overflow Damage . | . . . . Projectiles . | . . . . Explosions . | . . . . Melee . | . . . . Knockbacks . | . . . . Impact . | . . . . Kinetic . | . . . . Secondary . | . . . . Self-Inflicted Damage . | . . . . Shots . | . . . . Rammed . | . . . . Targets Rammed . | . . . . Kicked . | . . . . Crushed . | . . . . Highest Temperature 7 | . 7 . . Average Temperature 7 | . 7 . . Received Heat Transfer 150 | . 78 . 72 Siege Activations . | . . . . Martial Activations . | . . . . Shielding Activations . | . . . . Robots Disrupted . | . . . . Combat Hostiles . | . . . . Robots Corrupted . | . . . . Combat Hostiles . | . . . . Parts Fried . | . . . . Impact Corruptions . | . . . . Robots Melted . | . . . . Combat Hostiles . | . . . . Parts Melted . | . . . . Heat Transferred . | . . . . Parts Sabotaged . | . . . . Parts Stolen . | . . . . Parts Stripped . | . . . . Power Chain Reactions . | . . . . Alert | -11 -10 -10 -10 ------- Run | Yrd Mat Min Sub Maximum Alert Level . | . . . . Low Security (%) 100 | 100 100 100 . Level 1 . | . . . . Level 2 . | . . . . Level 3 . | . . . . Level 4 . | . . . . Level 5 . | . . . . High Security . | . . . . Max Security . | . . . . Peak Influence 130 | . 130 42 . Initial 42 | . . 42 . Average 22 | . 68 9 . Influence Increases 177 | . 140 . 37 Destroy 0b10 Robot/C 140 | . 120 . 20 Destroy Leader 20 | . 20 . . Allied During Kill 2 | . . . 2 Lose Combat Pursuer 15 | . . . 15 Influence Decreases 177 | . 30 110 37 Entered New Map 68 | . . 68 . Time Decay 97 | . 30 42 25 Lost Ally 12 | . . . 12 Squads Dispatched . | . . . . Investigation . | . . . . Extermination . | . . . . Reinforcement . | . . . . Assault . | . . . . Garrison . | . . . . Intercept . | . . . . Searches Triggered . | . . . . Construction Impeded . | . . . . Haulers Reinforced . | . . . . Active Scanning Responses . | . . . . Cargo Convoy Interrupts . | . . . . Stealth | -11 -10 -10 -10 --------- Run | Yrd Mat Min Sub Distress Signals 1 | . 1 . . Communications Jammed . | . . . . Distress Signals . | . . . . Times Spotted 22 | . 10 . 12 Peak Tracking Total 8 | . 4 . 8 Tactical Retreats 2 | . . . 2 Traps | -11 -10 -10 -10 ------- Run | Yrd Mat Min Sub Traps Triggered 1 | . . . 1 Indirectly . | . . . . Trap Hack Attempts . | . . . . Triggered . | . . . . Disarmed . | . . . . Reprogrammed . | . . . . Reused . | . . . . Traps Extracted . | . . . . Installed . | . . . . Triggered . | . . . . Machines | -11 -10 -10 -10 ---------- Run | Yrd Mat Min Sub Machines Disabled . | . . . . Max in Single Turn . | . . . . Machines Repaired . | . . . . Machines Dismantled . | . . . . Machines Sabotaged . | . . . . Overloaded Fab Kills . | . . . . Hacking | -11 -10 -10 -10 --------- Run | Yrd Mat Min Sub Machines Accessed 1 | . . . 1 Terminals . | . . . . Fabricators . | . . . . Repair Stations . | . . . . Recycling Units . | . . . . Scanalyzers . | . . . . Garrison Access . | . . . . Total Hacks 5 | . . . 5 Successful 5 | . . . 5 Failed . | . . . . Catastrophic . | . . . . Database Lockouts . | . . . . Manual . | . . . . Terminals . | . . . . Fabricators . | . . . . Repair Stations . | . . . . Recycling Units . | . . . . Scanalyzers . | . . . . Garrison Access . | . . . . Terminal Hacks 5 | . . . 5 Record 5 | . . . 5 Fabricator Hacks . | . . . . Repair Station Hacks . | . . . . Recycling Unit Hacks . | . . . . Scanalyzer . | . . . . Garrison Access Hacks . | . . . . Unauthorized Hacks . | . . . . Terminals . | . . . . Fabricators . | . . . . Repair Stations . | . . . . Recycling Units . | . . . . Scanalyzers . | . . . . Garrison Access . | . . . . Data Cores Recovered . | . . . . Used . | . . . . Hacking Detections . | . . . . Full Trace Events . | . . . . Feedback Events . | . . . . Feedback Blocked . | . . . . Robot Schematics Acquired . | . . . . Robots Built . | . . . . Authchips . | . . . . Time . | . . . . Total Robot Build Rating . | . . . . Part Schematics Acquired . | . . . . Parts Built . | . . . . Authchips . | . . . . Time . | . . . . Total Part Build Rating . | . . . . Part Studies Acquired . | . . . . Parts Repaired . | . . . . Time . | . . . . Parts Recycled . | . . . . Recycled Matter . | . . . . Retrieved Matter . | . . . . Retrieved Components . | . . . . Parts Scanalyzed . | . . . . Part Schematics Acquired . | . . . . Parts Damaged . | . . . . Bothacking | -11 -10 -10 -10 ------------ Run | Yrd Mat Min Sub Used RIF Installer . | . . . . Robots Hacked . | . . . . Non-combat . | . . . . Combat . | . . . . Robot Hacks Applied . | . . . . Relay Couplers Released . | . . . . Fabnet Peak Effective % . | . . . . Robots Rewired . | . . . . Allies Hacked . | . . . . Hacks Repelled . | . . . . Allies | -11 -10 -10 -10 -------- Run | Yrd Mat Min Sub Total Allies 2 | . . 2 . Largest Group 2 | . . 2 2 Highest-Rated Group 42 | . . 42 42 Highest-Rated Ally 31 | . . 31 31 Total Orders . | . . . . Ally Attacks 7 | . . . 7 Total Damage 101 | . . . 101 Kills . | . . . . Allies Corrupted . | . . . . Allies Melted . | . . . . Intel | -11 -10 -10 -10 ------- Run | Yrd Mat Min Sub Active Infowar (turns) 350 | . . 99 251 Sensors 350 | . . 99 251 Robot Analysis Total . | . . . . Derelict Logs Recovered 2 | . . 2 . Drone Launches . | . . . . Drone Recoveries . | . . . . Exploration | -11 -10 -10 -10 ------------- Run | Yrd Mat Min Sub Turns Passed 706 | 62 93 224 327 Spaces Moved 432 | 48 42 180 162 Core 73 | 19 . . 54 Treads . | . . . . Legs 359 | 29 42 180 108 Wheels . | . . . . Hover . | . . . . Flight . | . . . . Fastest Speed 50 | 50 120 120 100 Average Speed 124 | 92 120 120 141 Slowest Speed 250 | 120 120 120 250 Overloaded Moves . | . . . . Propulsion Burnouts . | . . . . Robots Hopped . | . . . . Potential Cave-ins . | . . . . Cave-ins Triggered . | . . . . Exploration Rate (%) 22 | 4 18 53 13 Regions Visited 3 Branch Regions 2 Pre-discovered Areas 1 | . . 1 . Known Exits Taken . | . . . . Unknown Exits Taken 3 | 1 1 1 . Scrap Searched 2 | . . 2 . Spaces Dug . | . . . . Terrain Destroyed . | . . . . Melee . | . . . . Projectile . | . . . . AOE . | . . . . Terrain Rammed . | . . . . Walls Destroyed . | . . . . Machines Disabled . | . . . . Actions | -11 -10 -10 -10 --------- Run | Yrd Mat Min Sub Total 572 | 65 65 188 254 Wait 108 | 6 12 5 85 Move 429 | 47 41 179 162 Hop . | . . . . Pick Up 10 | 6 . 3 1 Fast Attach . | . . . . Attach 8 | 6 . 1 1 Detach . | . . . . Swap . | . . . . Drop 1 | . . . 1 Fire 16 | . 12 . 4 Melee . | . . . . Ram . | . . . . Kick . | . . . . Crush . | . . . . Escape Stasis . | . . . . Rewire . | . . . . Trap . | . . . . Miscellaneous . | . . . . Route ------- -11/Scrapyard -10/Materials -10/Mines (discovered 2 exits: [*Mat] / *Sub) -10/Subcaves History --------- Turn | Location | Event 3 | -11/Scrapyard | Discovered new exit (range 16) 63 | -11/Scrapyard | Entered Materials 139 | -10/Materials | Discovered new exit (range 15) 156 | -10/Materials | Entered Mines 234 | -10/Mines | Discovered new exit (range 8) 239 | -10/Mines | Learned location of Recycling (-7) 291 | -10/Mines | Learned Materials trap positions 302 | -10/Mines | Build established: Mutant 303 | -10/Mines | Assembled infested the area 374 | -10/Mines | Discovered new exit (range 5) 380 | -10/Mines | Entered Subcaves 380 | -10/Subcaves | Accompanied by 2 allies 381 | -10/Subcaves | Approached by a straggling Scientist 385 | -10/Subcaves | Led the pair of lost Derelicts to an unsafe place 428 | -10/Subcaves | A swath of the cavern ceiling suddenly collapsed 564 | -10/Subcaves | Visited Clippyterm 568 | -10/Subcaves | Learned 40 Factory zone layouts 568 | -10/Subcaves | Learned Factory emergency access door positions 620 | -10/Subcaves | Ambushed by swarm of Subdwellers 627 | -10/Subcaves | Lost 4 parts (2n2w) 632 | -10/Subcaves | Core integrity fell below 50% 689 | -10/Subcaves | Lost 6 allies 707 | -10/Subcaves | Core integrity fell below 20% 707 | -10/Subcaves | Destroyed by X8-GDM(R) with Subdweller Beam Cannon Last Messages --------------- Machinery. 00627_ 3M-E5S(R) suffers critical hit (Destroy). 00629_ 8L-O59(R) emerges from the Twisted Machinery. 00629_ ZJ-4M7(h) destroyed. 00631_ EY-NKN(c) destroyed. 00631_ Sensor Array destroyed. 00632_ NY-UJJ(g): "Sorry we're late! Had another grouchy Sub to deal with. Who's the new fellow?" 00633_ Subatomizers dissect the Sub. Optics. 00649_ NY-UJJ(g) destroyed. 00655_ Acquired Beamcaster. 00656_ 4P-78Q(R) destroyed. 00658_ Q6-B0Q(g) destroyed. 00659_ Acquired 41 matter. 00668_ Subatomizers dissect the Sub. Optics. 00685_ Ion Engine destroyed. 00687_ Dropped Beamcaster. Map ----- +----------------------------------------------------+ | ?????????????????????????????????????????????????? | | ?????????????????????????????????????????????????? | | ?????????????????????????????????????????????????? | | ?????????????????????????????????????????????????? | | ?????????????????????????????????????????????????? | | ?????????????????????????????????????????????????? | | ?????????????????????????????????????????????????? | | ?????????????????????????????????????????????????? | | ?????????????????????????????????????????????????? | | ?????????????????????????????????????????????????? | | ?????????????????????????????????????????????????? | | ?????????????????????????????????????????????????? | | ???????????????????????######????????????????????? | | ?????????##???????????## ##??###??????????????? | | ???##???# ###?????????# #?? ##?????????????? | | ??## ??# #??######## ##? #?????????????? | | ### ??# ???#"""## ## #?????????????? | | ### ????#"" ## #?????????????? | | ## % ????#"X #??????????????? | | "# ?????#"" ## R## ##??????????????? | | "" #?????#"""### ### ####????????????? | | #?########## ;#R #????????????? | | !=###!##![###### R #????????????? | | =%%*%*& !! #??# R #????????????? | | *[!#!###* #??## R ####????????????? | | ####?#### #####[@ ##??????????????? | | #?????# ## # ##?????????????? | | ## #????## ## #?????????????? | | #??## #???#### ## ### ##?????????????? | | ?????## ##??????### ## ### ### #??????????? | | ??????#######?????????# ??#### #??????????? | | ??????????????????????##???# #??????????? | | ???????????????????????????# #?????????? | | ??????????????????????????# # #### ##?????????? | | ?????????????????????????#### ##??# ##?????????? | | ?????????????????????????# #??? ##????????? | | ?????????????????????????# ##### #????????? | | ?????????????????????????# # ####????????? | | ?????????????????????????####### ##???????????? | | ????????????????????????????### # #???????????? | | ??????????????????????####### ##???????????? | | ??????????????????????# #???????????? | | ?????????????????????## # # # #???????????? | | ?????????????????????# #####?#???????????? | | ????????????????????## ##???????????????? | | ???????????????????## ^ ^###?????????????? | | ???????????????????# ^^ #?????????????? | | ???????????????????# ^ ##????????????? | | ???????????????????# ### #????????????? | | ???????????????????# ##### # ####????????? | +----------------------------------------------------+ Best States ------------- Heat Dissipation 25 Energy Generation 10 Energy Capacity 250 Matter Stores 300 Matter Capacity 300 Sight Range 16 Robot Scan Range 14 Terrain Scan Density 10 Evasion (%) 55 Item Schematics ----------------- None Robot Schematics ------------------ None Fabricated ------------ Nothing Repaired ---------- Nothing Studied --------- None Alien Tech Used ----------------- None Achievements -------------- None Challenges ------------ None Game ------ Seed CompactGravjetDoomcannon Manual? 0 Play Time 00:08:24 Cumulative 33.2 hours Start 2025.10.24 @ 19:17:41 End 2025.10.24 @ 19:25:36 Sessions 1 Manual Loads 0 Difficulty Rogue Special Mode None Game No. 29 Rogue 17 Adventurer 1 Explorer 11 Win Type - Total 2 Types 1/0/1/0/0/0/0/0/0/0 Lore% 12 Gallery% 27 Achievement% 32 Wizard Run 0 Options --------- Layout 1 ASCII 0 Keyboard 0 Movement Numpad Keybinds 0 Fullscreen 1 Font 24/Smallcaps Map View 50x35 Zoom Use 0% Tactical HUD 1 Map Filters NONE Filters NONE Steam 1 RUN: 0b25e22f-b112-4ff5-89b2-d02861dfb983